Cogmind - Beta 15 @@@ ROGUE MODE // 2025.07.14 @ 22:22:32 Player: SKIP Result: Destroyed by 12-RRW(j) with Overtuned Pulse Rifle Performance ------------- Evolutions (0) 0 Regions Visited (4) 800 Robots Destroyed (36) 180 Value Destroyed (784) 784 Prototype IDs (7) 140 Alien Tech Used (0) 0 Bonus (763) 763 TOTAL SCORE: 2667 Bonus ------- Registered with UFD 300 Met Optimus in HQ 500 Friendly Fire -37 Cogmind --------- Core Integrity 0/250 Matter 300/300 Energy 150/150 System Corruption 1% Temperature Cool (77) Movement Treading (160) Ox1 Location -9/Scraptown Parts ------- > --- POWER (1) -------- Micro Fission Core > --- PROPULSION (2) --- Overtuned Treads Overtuned Treads > --- UTILITY (2) ------ Large Storage Unit Makeshift Light Armor Plating > --- WEAPON (2) ------- Enhanced Autogun Heavy Battle Rifle > --- INVENTORY (15) --- Subdweller Power Source Overtuned Treads Overtuned Treads Scrap Suit Scrap Suit Improved Heat Sink Makeshift Microdissipator Network Huge Storage Unit Subdweller Optics Makeshift Light Armor Plating Makeshift Light Armor Plating Makeshift Hacking Suite Heavy Battle Rifle Peak State ------------ > --- POWER ------------ Micro Fission Core > --- PROPULSION ------- Overtuned Treads Overtuned Treads > --- UTILITY ---------- Large Storage Unit Makeshift Light Armor Plating > --- WEAPON ----------- Enhanced Autogun Heavy Battle Rifle > --- INVENTORY -------- Subdweller Power Source Overtuned Treads Overtuned Treads Scrap Suit Scrap Suit Improved Heat Sink Makeshift Microdissipator Network Huge Storage Unit Subdweller Optics Makeshift Light Armor Plating Makeshift Light Armor Plating Makeshift Hacking Suite Heavy Battle Rifle [Rating: 30] Favorites ----------- Power Ion Engine Engine Ion Engine Power Core Micro Fission Core Propulsion Light Treads Treads Light Treads Utility Large Storage Unit Device Heat Sink Storage Large Storage Unit Protection Makeshift Light Armor Plating Weapon Beam Cannon Energy Gun Subdweller Laser Energy Cannon Beam Cannon Ballistic Gun Assault Rifle Special Weapon Mining Laser Build | -11 -10 -10 -9 -9 ------- Run | Yrd Mat Sub Rec Scr Slots Evolved . | . . . . . Power . | . . . . . Propulsion . | . . . . . Utility . | . . . . . Weapon . | . . . . . Parts Attached 37 | 6 7 9 . 15 Power 5 | 1 . 2 . 2 Engine 4 | 1 . 2 . 1 Core 1 | . . . . 1 Reactor . | . . . . . Propulsion 8 | 2 . . . 6 Treads 8 | 2 . . . 6 Leg . | . . . . . Wheel . | . . . . . Hover . | . . . . . Flight . | . . . . . Utility 8 | 1 3 1 . 3 Device 3 | . 1 . . 2 Storage 3 | 1 2 . . . Processor . | . . . . . Hackware . | . . . . . Protection 2 | . . 1 . 1 Artifact . | . . . . . Weapon 16 | 2 4 6 . 4 Energy Gun 5 | . 2 2 . 1 Energy Cannon 3 | . 1 2 . . Ballistic Gun 7 | 2 1 1 . 3 Ballistic Cannon . | . . . . . Launcher . | . . . . . Special Weapon 1 | . . 1 . . Impact Weapon . | . . . . . Slashing Weapon . | . . . . . Piercing Weapon . | . . . . . Special Melee Weapon . | . . . . . Unidentified Prototypes 1 | . . . . 1 Parts Lost 3 | . . 2 . 1 Power 1 | . . . . 1 Propulsion . | . . . . . Utility . | . . . . . Weapon 2 | . . 2 . . Highest Loss Streak 1 | . . 1 . 1 To Critical Strikes . | . . . . . Average Backups 13 | 2 11 13 14 13 Power 2 | . 1 1 3 2 Propulsion 4 | 1 6 3 3 4 Utility 3 | . 1 3 5 5 Weapon 2 | . 3 4 2 1 Tool/Special . | . . . . . Unused Backups 25 | . 2 7 . 16 Power 3 | . . . . 3 Propulsion 12 | . 1 6 . 5 Utility 7 | . . 1 . 6 Weapon 3 | . 1 . . 2 Tool/Special . | . . . . . Average Slot Usage (%) 99 | . 96 100 100 99 Engine 13 | . 14 14 14 13 Treads 27 | . 27 28 28 28 Device 1 | . 4 . . 1 Storage 15 | . 21 14 14 14 Protection 9 | . . 13 14 12 Energy Gun 11 | . 3 16 14 13 Energy Cannon 11 | . 9 9 14 12 Ballistic Gun 4 | . 15 . . 2 Peak Build Rating 30 | 6 10 14 13 30 Average Rating 12 | 4 7 12 13 14 On Entrance 8 | . 6 10 13 13 Naked Turns . | . . . . . Heaviest Build 38 | 13 35 36 36 38 Greatest Support 40 | 40 40 40 40 40 Greatest Overweight (x) 1 | . . . . 1 Average Overweight (x) . | . . . . . Largest Inventory Capacity 25 | 8 25 15 15 15 Average Capacity 14 | 7 13 15 15 15 Most Carried 15 | 6 15 15 15 15 Average Carried 13 | 3 11 14 14 14 Final Capacity 15 | 8 15 15 15 15 Final Carried 15 | 6 15 15 15 15 Class Distribution -------------------- 95% | Mutant 4% | Scavenger-Mutant Dominant Class ---------------- Mutant | -10/Materials Mutant | -10/Subcaves Mutant | -9/Recycling Mutant | -9/Scraptown Resources | -11 -10 -10 -9 -9 ----------- Run | Yrd Mat Sub Rec Scr Matter Collected 909 | 184 319 111 . 295 Remotely . | . . . . . Salvage Created 1209 | . 519 333 208 149 Parts 77 | . 27 31 7 12 Haulers Intercepted 2 | . 2 . . . Recyclers Shooed . | . . . . . Parts Field Recycled . | . . . . . Retrieved Matter . | . . . . . Parts Self-Destructed 25 | . . 25 . . Prevented . | . . . . . Kills | -11 -10 -10 -9 -9 ------- Run | Yrd Mat Sub Rec Scr Combat Hostiles Destroyed 29 | . 13 12 1 3 Guns 23 | . 8 12 1 2 Cannons 6 | . 5 . . 1 Classes Destroyed 11 | . 4 2 2 3 Hauler 2 | . 2 . . . Recycler 2 | . . . 2 . Operator 1 | . 1 . . . Turret 2 | . . 2 . . Swarmer 15 | . 6 9 . . Grunt 7 | . 7 . . . Sentry 1 | . . . 1 . Subdweller 3 | . . 3 . . Federalist 1 | . . . . 1 Ranger 1 | . . . . 1 Scrapper 1 | . . . . 1 Best Kill Streak 5 | . 3 5 3 2 Combat Bots Only 4 | . 3 4 1 2 Max Kills in Single Turn 1 | . 1 1 1 1 Gunslinging . | . . . . . Exploded . | . . . . . Melee . | . . . . . Uniques/NPCs Destroyed . | . . . . . Combat | -11 -10 -10 -9 -9 -------- Run | Yrd Mat Sub Rec Scr Hostile Shots Fired 250 | . 50 128 4 68 Missed 82 | . 14 48 1 19 Hits 168 | . 36 80 3 49 Melee 1 | . . . . 1 Projectile 167 | . 36 80 3 48 AOE 2 | . . 2 . . Critical Strikes 4 | . . 1 . 3 Damage Taken 1973 | . 338 800 47 788 Core 263 | . 40 77 . 146 Absorbed by Shields . | . . . . . Regen/Repaired (Parts) 182 | . 182 . . . Core Remaining (%) 100 | 100 . . . . Volleys Fired 133 | . 41 59 5 28 Largest 2 | . 2 2 2 2 Hottest 140 | . 105 140 120 140 Shots Fired 240 | . 79 99 10 52 Gun 161 | . 52 56 5 48 Cannon 64 | . 27 28 5 4 Launcher . | . . . . . Special 15 | . . 15 . . Kinetic 87 | . 51 2 . 34 Thermal 113 | . 27 58 10 18 Explosive . | . . . . . Electromagnetic 40 | . 1 39 . . Robot Hit Streak 33 | . 18 27 33 4 Robot Miss Streak 5 | . 2 3 1 5 Penetration Max . | . . . . . Secondary Targets 3 | . 1 2 . . Max Gunslinging Chain 1 | . 1 1 . . Shots Hit Robots 139 | . 52 57 7 23 Core Hits 51 | . 21 19 4 7 Critical Kills . | . . . . . Critical Parts Destroyed . | . . . . . Critical Strikes 2 | . . 1 . 1 Burn 1 | . . . . 1 Corrupt 1 | . . 1 . . Melee Attacks . | . . . . . Impact . | . . . . . Slashing . | . . . . . Piercing . | . . . . . Sneak Attacks . | . . . . . Combat Hostiles . | . . . . . Follow-up Attacks . | . . . . . Damage Inflicted 2412 | . 848 937 127 500 Guns 1543 | . 393 652 75 423 Cannons 817 | . 403 285 52 77 Explosions . | . . . . . Melee . | . . . . . Ramming 52 | . 52 . . . Kinetic 669 | . 393 23 . 253 Thermal 1325 | . 403 548 127 247 Explosive . | . . . . . Electromagnetic 366 | . . 366 . . Impact . | . . . . . Slashing . | . . . . . Piercing . | . . . . . Highest Corruption 1 | . . . . 1 Average Corruption 1 | . . . . 1 Corruption Purged . | . . . . . Corruption Blocked . | . . . . . Effects 1 | . . . . 1 Energy Discharges 1 | . . . . 1 Overload Shots . | . . . . . Overflow Damage . | . . . . . Projectiles . | . . . . . Explosions . | . . . . . Melee . | . . . . . Knockbacks 1 | . 1 . . . Impact 1 | . 1 . . . Kinetic . | . . . . . Secondary . | . . . . . Self-Inflicted Damage . | . . . . . Shots . | . . . . . Rammed 6 | . 6 . . . Targets Rammed 6 | . 6 . . . Kicked . | . . . . . Crushed . | . . . . . Highest Temperature 426 | . 222 126 302 426 Average Temperature 101 | . 66 52 163 116 Received Heat Transfer 659 | . 111 204 9 335 Effects 1 | . . . . 1 Shutdowns 1 | . . . . 1 Siege Activations . | . . . . . Martial Activations . | . . . . . Shielding Activations . | . . . . . Robots Disrupted . | . . . . . Combat Hostiles . | . . . . . Robots Corrupted 1 | . . 1 . . Combat Hostiles . | . . . . . Parts Fried . | . . . . . Impact Corruptions . | . . . . . Robots Melted . | . . . . . Combat Hostiles . | . . . . . Parts Melted 5 | . 3 1 1 . Heat Transferred 2470 | . 851 880 211 528 Parts Sabotaged . | . . . . . Parts Stolen . | . . . . . Parts Stripped . | . . . . . Power Chain Reactions . | . . . . . Alert | -11 -10 -10 -9 -9 ------- Run | Yrd Mat Sub Rec Scr Maximum Alert Level . | . . . . . Low Security (%) 100 | 100 100 . 100 . Level 1 . | . . . . . Level 2 . | . . . . . Level 3 . | . . . . . Level 4 . | . . . . . Level 5 . | . . . . . High Security . | . . . . . Max Security . | . . . . . Peak Influence 135 | . 135 . 76 . Initial 76 | . . . 76 . Average 25 | . 36 . 8 . Influence Increases 1120 | . 370 705 45 . Destroy 0b10 Robot/C 500 | . 260 220 20 . Destroy 0b10 Robot/NC 25 | . 15 . 10 . Destroy Leader 64 | . 44 20 . . Successful Hack 33 | . 18 . 15 . Destroy Structure 3 | . 3 . . . Lose Combat Pursuer 495 | . 30 465 . . Influence Decreases 1120 | . 370 546 204 . Entered New Map 83 | . . . 83 . Time Decay 1017 | . 370 526 121 . Lost Part 20 | . . 20 . . Squads Dispatched 2 | . 2 . . . Investigation 1 | . 1 . . . Extermination . | . . . . . Reinforcement 1 | . 1 . . . Assault . | . . . . . Garrison . | . . . . . Intercept . | . . . . . Searches Triggered . | . . . . . Construction Impeded . | . . . . . Haulers Reinforced . | . . . . . Active Scanning Responses . | . . . . . Cargo Convoy Interrupts . | . . . . . Stealth | -11 -10 -10 -9 -9 --------- Run | Yrd Mat Sub Rec Scr Distress Signals 1 | . 1 . . . Communications Jammed . | . . . . . Distress Signals . | . . . . . Times Spotted 93 | . 30 36 1 26 Peak Tracking Total 6 | . 5 6 1 6 Tactical Retreats 7 | . 1 5 . 1 Traps | -11 -10 -10 -9 -9 ------- Run | Yrd Mat Sub Rec Scr Traps Triggered 1 | . 1 . . . Indirectly . | . . . . . Trap Hack Attempts . | . . . . . Triggered . | . . . . . Disarmed . | . . . . . Reprogrammed . | . . . . . Reused . | . . . . . Traps Extracted . | . . . . . Installed . | . . . . . Triggered . | . . . . . Machines | -11 -10 -10 -9 -9 ---------- Run | Yrd Mat Sub Rec Scr Machines Disabled 2 | . . 1 . 1 Max in Single Turn 1 | . . 1 . 1 Machines Repaired . | . . . . . Machines Dismantled . | . . . . . Machines Sabotaged . | . . . . . Overloaded Fab Kills . | . . . . . Hacking | -11 -10 -10 -9 -9 --------- Run | Yrd Mat Sub Rec Scr Machines Accessed 21 | . 9 2 6 4 Terminals 13 | . 8 . 5 . Fabricators . | . . . . . Repair Stations 1 | . 1 . . . Recycling Units . | . . . . . Scanalyzers . | . . . . . Garrison Access . | . . . . . Total Hacks 102 | . 32 3 20 47 Successful 81 | . 22 3 9 47 Failed 21 | . 10 . 11 . Catastrophic 1 | . . . 1 . Database Lockouts . | . . . . . Manual 20 | . 16 . 4 . Terminals 47 | . 28 . 19 . Fabricators . | . . . . . Repair Stations 4 | . 4 . . . Recycling Units . | . . . . . Scanalyzers . | . . . . . Garrison Access . | . . . . . Terminal Hacks 66 | . 9 3 7 47 Record 52 | . . 1 4 47 Part Schematic 2 | . . . 2 . Prototype ID Bank 4 | . 3 . 1 . Open Door 1 | . . 1 . . Branch Access Points 1 | . 1 . . . Locate Traps 1 | . 1 . . . Dispatch Records 1 | . 1 . . . Hauler Manifests 2 | . 2 . . . Registered Components 1 | . 1 . . . Release Object 1 | . . 1 . . Fabricator Hacks . | . . . . . Repair Station Hacks 4 | . 4 . . . Scan Component 2 | . 2 . . . Repair 2 | . 2 . . . Recycling Unit Hacks . | . . . . . Scanalyzer . | . . . . . Garrison Access Hacks . | . . . . . Unauthorized Hacks 11 | . 9 . 2 . Terminals 11 | . 9 . 2 . Assimilate 1 | . 1 . . . Botnet 10 | . 8 . 2 . Fabricators . | . . . . . Repair Stations . | . . . . . Recycling Units . | . . . . . Scanalyzers . | . . . . . Garrison Access . | . . . . . Data Cores Recovered . | . . . . . Used . | . . . . . Hacking Detections 12 | . 7 . 5 . Full Trace Events 1 | . . . 1 . Feedback Events . | . . . . . Feedback Blocked . | . . . . . Robot Schematics Acquired . | . . . . . Robots Built . | . . . . . Authchips . | . . . . . Time . | . . . . . Total Robot Build Rating . | . . . . . Part Schematics Acquired 2 | . . . 2 . Parts Built . | . . . . . Authchips . | . . . . . Time . | . . . . . Total Part Build Rating . | . . . . . Parts Repaired 2 | . 2 . . . Time 52 | . 52 . . . Parts Recycled . | . . . . . Recycled Matter . | . . . . . Retrieved Matter . | . . . . . Retrieved Components . | . . . . . Parts Scanalyzed . | . . . . . Part Schematics Acquired . | . . . . . Parts Damaged . | . . . . . Bothacking | -11 -10 -10 -9 -9 ------------ Run | Yrd Mat Sub Rec Scr Used RIF Installer . | . . . . . Robots Hacked . | . . . . . Non-combat . | . . . . . Combat . | . . . . . Robot Hacks Applied . | . . . . . Relay Couplers Released . | . . . . . Fabnet Peak Effective % . | . . . . . Robots Rewired . | . . . . . Allies Hacked . | . . . . . Hacks Repelled . | . . . . . Allies | -11 -10 -10 -9 -9 -------- Run | Yrd Mat Sub Rec Scr Total Allies . | . . . . . Largest Group . | . . . . . Highest-Rated Group . | . . . . . Highest-Rated Ally . | . . . . . Total Orders . | . . . . . Ally Attacks . | . . . . . Total Damage . | . . . . . Kills . | . . . . . Allies Corrupted . | . . . . . Allies Melted 6 | . . . . 6 Intel | -11 -10 -10 -9 -9 ------- Run | Yrd Mat Sub Rec Scr Active Infowar (turns) . | . . . . . Robot Analysis Total . | . . . . . Derelict Logs Recovered 6 | . . 1 . 5 Drone Launches . | . . . . . Drone Recoveries . | . . . . . Exploration | -11 -10 -10 -9 -9 ------------- Run | Yrd Mat Sub Rec Scr Turns Passed 6390 | 91 1556 1467 870 2406 Spaces Moved 3548 | 49 808 737 518 1436 Core 4 | 4 . . . . Treads 3544 | 45 808 737 518 1436 Legs . | . . . . . Wheels . | . . . . . Hover . | . . . . . Flight . | . . . . . Fastest Speed 50 | 50 160 160 160 140 Average Speed 159 | 151 160 160 160 158 Slowest Speed 160 | 160 160 160 160 160 Overloaded Moves . | . . . . . Propulsion Burnouts . | . . . . . Robots Hopped . | . . . . . Potential Cave-ins . | . . . . . Cave-ins Triggered . | . . . . . Exploration Rate (%) 60 | 4 96 46 74 84 Regions Visited 4 Branch Regions 3 Pre-discovered Areas 4 | . . . . 4 Known Exits Taken . | . . . . . Unknown Exits Taken 4 | 1 1 1 1 . Scrap Searched 5 | . . . . 5 Spaces Dug . | . . . . . Terrain Destroyed 3 | . . . . 3 Melee . | . . . . . Projectile 3 | . . . . 3 AOE . | . . . . . Terrain Rammed . | . . . . . Walls Destroyed . | . . . . . Machines Disabled . | . . . . . Actions | -11 -10 -10 -9 -9 --------- Run | Yrd Mat Sub Rec Scr Total 4028 | 66 989 897 550 1526 Wait 208 | . 105 67 26 10 Move 3544 | 48 807 736 517 1436 Hop . | . . . . . Pick Up 51 | 12 13 12 1 13 Fast Attach 11 | . 5 1 . 5 Attach 11 | 6 1 2 . 2 Detach 1 | . 1 . . . Swap 22 | . 3 8 . 11 Drop 41 | . 7 12 1 21 Fire 133 | . 41 59 5 28 Melee . | . . . . . Ram . | . . . . . Kick . | . . . . . Crush 6 | . 6 . . . Escape Stasis . | . . . . . Rewire . | . . . . . Trap . | . . . . . Miscellaneous . | . . . . . Route ------- -11/Scrapyard -10/Materials (discovered 6 exits: [*Mat x3] / *Min x2 / *Sub) -10/Subcaves (discovered 2 exits: [*Mat] / *Rec) -9/Recycling -9/Scraptown (discovered 2 exits: [*Fac x2]) History --------- Turn | Location | Event 2 | -11/Scrapyard | Met Revision 17 23 | -11/Scrapyard | Discovered new exit (range 16) 92 | -11/Scrapyard | Entered Materials 305 | -10/Materials | Build established: Mutant 370 | -10/Materials | Discovered new exit (range 13) 459 | -10/Materials | Identified exit to Mines 837 | -10/Materials | Discovered new exit (range 16) 1095 | -10/Materials | Discovered new exit (range 10) 1204 | -10/Materials | Discovered new exit (range 16) 1275 | -10/Materials | Repaired Lgt. Treads 1303 | -10/Materials | Repaired Lgt. Treads 1648 | -10/Materials | Entered Subcaves 1648 | -10/Subcaves | Discovered new exit (range 10) 1649 | -10/Subcaves | Approached by a straggling Scientist 1650 | -10/Subcaves | Shifting Twisted Machinery released Mak. Light Armor Plating 1720 | -10/Subcaves | Shifting Twisted Machinery released Scrap Shield 2195 | -10/Subcaves | Learned location of 1 exit from Materials 2233 | -10/Subcaves | A swath of the cavern ceiling suddenly collapsed 2869 | -10/Subcaves | Discovered new exit (range 9) 3115 | -10/Subcaves | Entered Recycling 3915 | -9/Recycling | Scanned before Scraplab entrance 3939 | -9/Recycling | Entered Scraplab 3980 | -9/Recycling | Discovered new exit (range 3) 3985 | -9/Recycling | Entered Scraptown 4406 | -9/Scraptown | Discovered new exit (range 5) 4444 | -9/Scraptown | Scanned Subdweller tech in exchange for log data 4447 | -9/Scraptown | Learned location of Warlord (-4) 4449 | -9/Scraptown | Learned Research terminal intel 4450 | -9/Scraptown | Learned location of 1 exit from Proximity Caves 4452 | -9/Scraptown | Learned Factory garrison access intel 4511 | -9/Scraptown | Visited The Evicted 4582 | -9/Scraptown | Visited SPCMW 4642 | -9/Scraptown | Visited Cyclists 4986 | -9/Scraptown | Visited TADAMA 5132 | -9/Scraptown | Visited Fellowship of the Rings 5338 | -9/Scraptown | Visited Awakened 5404 | -9/Scraptown | Visited Artisan Demo Area 5519 | -9/Scraptown | Visited UFD Registry 5519 | -9/Scraptown | Registered with UFD as "Steelmod" 5586 | -9/Scraptown | Visited DA-N13 Charitable Foundation 5598 | -9/Scraptown | Found DCF Scrap (29 items) 5746 | -9/Scraptown | Met Optimus 5746 | -9/Scraptown | Accepted into 0bPrime 5865 | -9/Scraptown | Delivered Scrap Shield to a Scientist 5906 | -9/Scraptown | Civil war broke out across Scraptown 5916 | -9/Scraptown | Core integrity fell below 50% 6123 | -9/Scraptown | Lost 5 allies 6129 | -9/Scraptown | Visited Derelict Rescue Squad 6163 | -9/Scraptown | Optimus destroyed in the chaos of civil war 6165 | -9/Scraptown | Found Scrap Suit 6252 | -9/Scraptown | Learned location of Proximity Caves (-6) 6252 | -9/Scraptown | Learned location of Armory (-4) 6252 | -9/Scraptown | Learned 8 Materials zone layouts 6252 | -9/Scraptown | Learned 12 Materials zone layouts 6252 | -9/Scraptown | Learned 20 Factory zone layouts 6252 | -9/Scraptown | Learned 24 Factory zone layouts 6252 | -9/Scraptown | Learned 4 Recycling zone layouts 6252 | -9/Scraptown | Learned 8 Lower Caves zone layouts 6252 | -9/Scraptown | Learned 16 Upper Caves zone layouts 6252 | -9/Scraptown | Learned 16 Lower Caves zone layouts 6252 | -9/Scraptown | Learned 24 Proximity Caves zone layouts 6252 | -9/Scraptown | Learned 4 Hub_04(d) zone layouts 6252 | -9/Scraptown | Learned Storage emergency access door positions 6252 | -9/Scraptown | Learned location of 1 exit from Lower Caves 6252 | -9/Scraptown | Learned location of 2 exits from Upper Caves 6252 | -9/Scraptown | Learned location of 3 exits from Upper Caves 6283 | -9/Scraptown | Discovered new exit (range 10) 6289 | -9/Scraptown | Lost 12 allies 6318 | -9/Scraptown | Core integrity fell below 20% 6366 | -9/Scraptown | Found Scrap Suit 6391 | -9/Scraptown | Destroyed by 12-RRW(j) with Overtuned Pulse Rifle Last Messages --------------- 06340_ AQ-TTF(j) cannibalizes Aluminum Leg to repair Broken Ovr. Titanium Leg. 06344_ AQ-TTF(j) suffers critical hit (Burn). 06347_ AQ-TTF(j) destroyed. 06349_ Acquired 7 matter. 06353_ W6-NLL(j) cannibalizes Lgt. Deuterium Engine to repair Lgt. Deuterium Engine. 06355_ Acquired 7 matter. 06355_ 39-4MY(j) destroyed. 06358_ W6-NLL(j) cannibalizes Ovr. Titanium Leg to repair Ovr. Titanium Leg. 06366_ Acquired Scrap Suit. 06367_ Penetrated by Bolt. 06373_ System corrupted: Energy discharge (-55). 06374_ Acquired Mak. Hacking Suite. 06378_ Bolt penetrates Wall. 06381_ Penetrated by Bolt. 06389_ Bolt penetrates Wall. 06389_ Acquired 21 matter. 06391_ Acquired 7 matter. Map ----- +----------------------------------------------------+ | | | | | | | | | | | | | | | | | ?????????????????????????????????????????????????? | | ?????????????????????????????????????????????????? | | ?????????????????????????????????????????????????? | | ?????????????????????????????????????????????????? | | ?????????????????????????????????????????????????? | | ?????????????????????????????????????????????????? | | ?????????????????????????????????????????????????? | | ?????????????????????????????????????????????????? | | ?????????????????????????????????????????????????? | | ?????????????????????????????????????????????????? | | ?????????????????????????????????????????????????? | | ?????????????????????????????????????????????????? | | ?????????????????????????????????????????????????? | | ???????????????????????#########???####??????????? | | ??????????????????"???#""|##"" #####=*##??????